fUSD/lending_fUSD_20250205
["ID","MTS","AMOUNT","RATE_DAILY","PERIOD"]
[351778999,1738785071051,-713.04,0.00011803,2]
[351779000,1738785071064,-698.9,0.00011803,2]
[351779001,1738785071083,-636.47,0.00011803,2]
[351779002,1738785071097,-500.0,0.00011803,2]
[351779003,1738785071111,-500.0,0.00011803,2]
[351779004,1738785071124,-500.0,0.00011803,2]
[351779005,1738785071137,-730.39,0.00011803,2]
[351779006,1738785071150,-559.62,0.00011803,2]
[351779007,1738785071163,-500.0,0.00011803,2]
[351779008,1738785071176,-3939.16,0.00011803,2]
[351779009,1738785071189,-150.0,0.00011804,2]
[351779010,1738785071201,-384.3,0.00011805,2]
[351779011,1738785071214,-543.62,0.00011805,2]
[351779012,1738785071226,-2394.49,0.00011805,2]
[351779013,1738785071239,-500.0,0.00011805,2]
[351779014,1738785071252,-631.28,0.00011805,2]
[351779015,1738785071265,-1056.68,0.00011805,2]
[351779016,1738785071278,-1306.47,0.00011805,2]
[351779017,1738785071291,-983.69,0.00011805,2]
[351779018,1738785071304,-500.0,0.00011805,2]
[351779019,1738785071316,-693.38,0.00011805,2]
[351779020,1738785071329,-720.01,0.00011805,2]
[351779021,1738785071341,-908.79,0.00011805,2]
[351779022,1738785071354,-150.0,0.00011806,2]
[351779023,1738785071366,-150.0,0.00011806,2]
[351779024,1738785071379,-150.0,0.00011807,2]
[351779025,1738785071391,-1000.0,0.00011813,2]
[351779026,1738785071404,-1000.0,0.00011815,2]
[351779027,1738785071416,-150.0,0.00011817,2]
[351779028,1738785071429,-1000.0,0.00011819,2]
[351779029,1738785071442,-1000.0,0.00011821,2]
[351779030,1738785071455,-1000.0,0.00011824,2]
[351779031,1738785071468,-150.0,0.00011829,2]
[351779032,1738785071480,-1000.0,0.0001183,2]
[351779033,1738785071493,-1000.0,0.00011831,2]
[351779034,1738785071506,-187.09186051,0.00011834,2]
[351779035,1738785071518,-1000.0,0.00011838,2]
[351779036,1738785071531,-1000.0,0.00011839,2]
[351779037,1738785071544,-1000.0,0.00011846,2]
[351779038,1738785071557,-150.0,0.00011848,2]
[351779039,1738785071574,-1000.0,0.0001185,2]
[351779040,1738785071586,-150.0,0.0001185,2]
[351779041,1738785071596,-150.0,0.0001185,2]
[351779042,1738785071606,-150.0,0.0001185,2]
[351779043,1738785071615,-1000.0,0.00011856,2]
[351779044,1738785071624,-150.0,0.00011856,2]
[351779045,1738785071635,-150.0,0.00011859,2]
[351779046,1738785071644,-152.0,0.0001186,6]
[351779047,1738785071654,-187.09186051,0.00011867,2]
[351779048,1738785071664,-150.0,0.00011867,2]
[351779049,1738785071674,-150.0,0.00011871,2]
[351779050,1738785071683,-150.0,0.00011871,2]
[351779051,1738785071919,-150.0,0.00011871,2]
[351779052,1738785071945,-1000.0,0.00011873,2]
[351779053,1738785071958,-1000.0,0.00011877,2]
[351779054,1738785071968,-1000.0,0.00011881,2]
[351779055,1738785071978,-1000.0,0.00011884,2]
[351779056,1738785071987,-1000.0,0.00011886,2]
[351779057,1738785071996,-1000.0,0.00011887,2]
[351779058,1738785072007,-1000.0,0.00011889,2]
[351779059,1738785072016,-150.0,0.0001189,2]
[351779060,1738785072026,-150.0,0.00011893,2]
[351779061,1738785072035,-150.0,0.00011893,2]
[351779062,1738785072046,-1000.0,0.00011894,2]
[351779063,1738785072055,-1000.0,0.00011896,2]
[351779064,1738785072064,-150.0,0.00011897,2]
[351779065,1738785072075,-500.0,0.00011897,2]
[351779066,1738785072084,-167906.28175272,0.00011898,3]
[351779067,1738785072094,-2009.86,0.000119,2]
[351779068,1738785072104,-5000.0,0.000119,2]
[351779069,1738785072114,-515.21938993,0.000119,2]
[351779070,1738785072123,-4063.81348183,0.000119,2]
[351779071,1738785072132,-187.09186051,0.000119,2]
[351779072,1738785072142,-1182.0,0.000119,4]
[351779073,1738785072152,-151.08814574,0.000119,2]
[351779074,1738785072162,-49072.47634749,0.000119,2]
[351779075,1738785072172,-366.0,0.000119,2]
[351779076,1738785072182,-150.0,0.00011909,2]
[351779077,1738785072192,-150.0,0.00011912,2]
[351779078,1738785072202,-1000.0,0.00011912,2]
[351779079,1738785072213,-150.0,0.00011913,2]
[351779080,1738785072223,-1000.0,0.00011913,2]
[351779081,1738785072234,-1000.0,0.00011913,2]
[351779082,1738785072243,-150.0,0.00011914,2]
[351779083,1738785072254,-1000.0,0.00011915,2]
[351779084,1738785072264,-1000.0,0.00011917,2]
[351779085,1738785072274,-621.61,0.00011917,2]
[351779086,1738785072284,-500.0,0.00011917,2]
[351779087,1738785072293,-556.32,0.00011917,2]
[351779088,1738785072303,-500.0,0.00011917,2]
[351779089,1738785072313,-709.56,0.00011917,2]
[351779090,1738785072325,-656.34,0.00011917,2]
[351779091,1738785072339,-1000.0,0.00011918,2]
[351779092,1738785072349,-150.0,0.00011924,2]
[351779093,1738785072359,-150.0,0.00011925,2]
[351779094,1738785072368,-150.0,0.00011925,2]
[351779095,1738785072377,-150.0,0.00011927,2]
[351779096,1738785072387,-150.0,0.00011927,2]
[351779097,1738785072397,-1000.0,0.00011931,2]
[351779098,1738785072407,-1000.0,0.00011933,2]
[351779099,1738785072418,-1000.0,0.00011933,2]
[351779100,1738785072428,-1000.0,0.00011935,2]
[351779101,1738785072438,-150.0,0.00011935,2]
[351779102,1738785072449,-150.0,0.00011936,2]
[351779103,1738785072459,-150.0,0.00011936,2]
[351779104,1738785072469,-150.0,0.00011937,2]
[351779105,1738785072479,-150.0,0.00011938,2]
[351779106,1738785072490,-1053.61,0.0001194,2]
[351779107,1738785072500,-500.0,0.0001194,2]
[351779108,1738785072511,-788.53,0.0001194,2]
[351779109,1738785072522,-323.3,0.0001194,2]
[351779110,1738785072532,-500.0,0.0001194,2]
[351779111,1738785072542,-500.0,0.0001194,2]
[351779112,1738785072553,-576.46,0.0001194,2]
[351779113,1738785072562,-704.1,0.0001194,2]
[351779114,1738785072573,-713.04,0.0001194,2]
[351779115,1738785072583,-698.9,0.0001194,2]
[351779116,1738785072593,-636.47,0.0001194,2]
[351779117,1738785072603,-500.0,0.0001194,2]
[351779118,1738785072612,-609.49,0.0001194,2]
[351779119,1738785072623,-571.83,0.0001194,2]
[351779120,1738785072634,-730.39,0.0001194,2]
[351779121,1738785072645,-559.62,0.0001194,2]
[351779122,1738785072656,-500.0,0.0001194,2]
[351779123,1738785072667,-3939.16,0.0001194,2]
[351779124,1738785072677,-1000.0,0.00011941,2]
[351779125,1738785072688,-543.62,0.00011942,2]
[351779126,1738785072698,-2394.49,0.00011942,2]
[351779127,1738785072708,-510.35,0.00011942,2]
[351779128,1738785072718,-631.28,0.00011942,2]
[351779129,1738785072728,-1056.68,0.00011942,2]
[351779130,1738785072739,-1306.47,0.00011942,2]
[351779131,1738785072750,-983.69,0.00011942,2]
[351779132,1738785072763,-500.0,0.00011942,2]
[351779133,1738785072774,-693.38,0.00011942,2]
[351779134,1738785072786,-720.01,0.00011942,2]
[351779135,1738785072796,-908.79,0.00011942,2]
[351779136,1738785072806,-1000.0,0.00011947,2]
[351779137,1738785072816,-1000.0,0.00011952,2]
[351779138,1738785072828,-1000.0,0.00011952,2]
[351779139,1738785072838,-150.0,0.00011955,2]
[351779140,1738785072847,-1000.0,0.00011956,2]
[351779141,1738785072857,-150.0,0.00011957,2]
[351779142,1738785072867,-1000.0,0.00011965,2]
[351779143,1738785072878,-150.0,0.00011967,2]
[351779144,1738785072889,-150.0,0.00011972,2]
[351779145,1738785072898,-1000.0,0.00011976,2]
[351779146,1738785072908,-150.0,0.00011979,2]
[351779147,1738785072918,-4005.0137227,0.00011989,2]
[351779148,1738785072927,-162.92955288,0.0001199,2]
[351779149,1738785072937,-3851.7381025,0.00011992,2]
[351779150,1738785072947,-3698.4624824,0.00011992,2]
[351779151,1738785072957,-3545.1868623,0.00011992,2]
[351779152,1738785072966,-3391.9112421,0.00011992,2]
[351779153,1738785072976,-3238.635622,0.00011992,2]
[351779154,1738785072986,-500.0,0.00011998,2]
[351779155,1738785072995,-500.0,0.00011998,2]
[351779156,1738785073006,-649.80797817,0.00011998,2]
[351779157,1738785073015,-500.0,0.00011999,2]
[351779158,1738785073026,-153.15617548,0.00012,2]
[351779159,1738785073035,-1441366.58886613,0.00012,2]
[351779160,1738785073283,-30780.94605095,0.00012,2]
[351779161,1738785073295,-15975.19999972,0.00012,2]
[351779162,1738785073306,-329.89470426,0.00012,2]
[351779163,1738785073320,-42792.96119441,0.00012,2]
[351779164,1738785073332,-260387.62954341,0.00012,2]
[351779165,1738785073344,-357615.56636926,0.00012,2]
[351779166,1738785073509,-500.0,9.611e-05,2]
[351779167,1738785073524,-500.0,9.613e-05,2]
[351779168,1738785073534,-500.0,9.613e-05,2]
[351779169,1738785073545,-500.0,9.748e-05,2]
[351779170,1738785073555,-500.0,9.885e-05,2]
[351779171,1738785073566,-4000.0,0.0001,2]
[351779172,1738785073579,-500.0,0.00010022,2]
[351779173,1738785073589,-22758.78251771,0.00012,2]
[351779174,1738785073602,-2694.85197743,0.00012,2]
[351779175,1738785073614,-1334.06457265,0.00012,2]
[351779176,1738785073625,-5168.63282257,0.00012,2]
[351779177,1738785073637,-5547.50756942,0.00012,2]
[351779178,1738785073649,-2691.37711825,0.00012,2]
[351779179,1738785073661,-1053.10199189,0.00012,2]
[351779180,1738785073678,-10490.0,0.00012,2]
[351779181,1738785754236,-3892.96601669,8.219e-05,2]
[351779182,1738785754263,-1957.91065176,8.219e-05,2]
[351779183,1738785754290,-2304.1862225,8.219e-05,2]
[351779184,1738785754317,-1206.16,8.219e-05,2]
[351779185,1738785754347,-335.08,8.582e-05,2]
[351779186,1738785754375,-1500.0,8.582e-05,2]
[351779187,1738785754409,-23900.0,8.618e-05,2]
[351779188,1738785754439,-1000.0,8.718e-05,2]
[351779189,1738785754466,-1290.01,8.736e-05,2]
[351779190,1738785754494,-250.0,8.81e-05,2]
[351779191,1738785754521,-160.94,8.829e-05,2]
[351779192,1738785754549,-150.0,8.835e-05,2]
[351779193,1738785754575,-36015.4145,8.836e-05,2]
[351779194,1738785754601,-11637.33260905,8.836e-05,2]
[351779195,1738786231523,-153.14,8.594e-05,2]
[351779196,1738786231534,-474.85,8.659e-05,2]
[351779197,1738786231543,-453.00860329,8.699e-05,2]
[351779198,1738786231631,-2437.05779671,8.699e-05,2]
[351779199,1738786231642,-1698.1318,8.699e-05,2]
[351779200,1738786231652,-300.0,8.809e-05,2]
[351779201,1738786231661,-277.58,8.81e-05,2]
[351779202,1738786231670,-164.56,8.81e-05,2]
[351779203,1738786231680,-164.56,8.817e-05,2]
[351779204,1738786231691,-164.56,8.824e-05,2]
[351779205,1738786231701,-164.56,8.832e-05,2]
[351779206,1738786231711,-4565.84439095,8.836e-05,2]
[351779207,1738786231720,-2911.7662,8.836e-05,2]
[351779208,1738786231730,-4943.2274,8.836e-05,2]
[351779209,1738786231739,-164.56,8.839e-05,2]
[351779210,1738786231749,-164.56,8.846e-05,2]
[351779211,1738786231759,-500.0,8.851e-05,2]
[351779212,1738786231768,-688.5184,8.851e-05,2]
[351779213,1738786231777,-164.56,8.854e-05,2]
[351779214,1738786231788,-576.20255083,8.901e-05,2]
[351779215,1738786231799,-810.18,8.945e-05,2]
[351779216,1738786231814,-3644.4435,8.973e-05,2]
[351779217,1738786231824,-150.0,9.61e-05,2]
[351779218,1738786231833,-500.0,9.611e-05,2]
[351779219,1738786231842,-500.0,9.611e-05,2]
[351779220,1738786231853,-500.0,9.611e-05,2]
[351779221,1738786231862,-500.0,9.611e-05,2]
[351779222,1738786231872,-500.0,9.611e-05,2]
[351779223,1738786231881,-303.15098661,9.611e-05,2]
[351779224,1738786231894,-196.84901339,9.611e-05,2]
[351779226,1738786231905,-500.0,9.611e-05,2]
[351779228,1738786231915,-500.0,9.611e-05,2]
[351779230,1738786231925,-500.0,9.611e-05,2]
[351779231,1738786231935,-500.0,9.611e-05,2]
[351779232,1738786231944,-500.0,9.611e-05,2]
[351779234,1738786231954,-500.0,9.611e-05,2]
[351779235,1738786231963,-500.0,9.611e-05,2]
[351779237,1738786231973,-500.0,9.611e-05,2]
[351779239,1738786231982,-500.0,9.611e-05,2]
[351779241,1738786231992,-500.0,9.611e-05,2]
[351779243,1738786232002,-500.0,9.611e-05,2]
[351779245,1738786232013,-500.0,9.611e-05,2]
[351779247,1738786232023,-500.0,9.611e-05,2]
[351779249,1738786232031,-500.0,9.611e-05,2]
[351779251,1738786232041,-500.0,9.611e-05,2]
[351779253,1738786232051,-500.0,9.611e-05,2]
[351779255,1738786232064,-500.0,9.611e-05,2]
[351779257,1738786232074,-500.0,9.611e-05,2]
[351779259,1738786232085,-500.0,9.611e-05,2]
[351779261,1738786232095,-500.0,9.611e-05,2]
[351779264,1738786232106,-500.0,9.611e-05,2]
[351779266,1738786232115,-500.0,9.611e-05,2]
[351779267,1738786232125,-765.47,9.611e-05,2]
[351779269,1738786232136,-500.0,9.611e-05,2]
[351779271,1738786232151,-500.0,9.611e-05,2]
[351779273,1738786232163,-500.0,9.611e-05,2]
[351779275,1738786232174,-500.0,9.611e-05,2]
[351779278,1738786232185,-500.0,9.611e-05,2]
[351779279,1738786232196,-500.0,9.611e-05,2]
[351779281,1738786232206,-500.0,9.611e-05,2]
[351779283,1738786232217,-500.0,9.611e-05,2]
[351779285,1738786232229,-500.0,9.611e-05,2]
[351779287,1738786232241,-500.0,9.611e-05,2]
[351779289,1738786232251,-500.0,9.611e-05,2]
[351779291,1738786232261,-500.0,9.611e-05,2]
[351779293,1738786232271,-500.0,9.611e-05,2]
[351779295,1738786232281,-500.0,9.611e-05,2]
[351779297,1738786232290,-500.0,9.611e-05,2]
[351779299,1738786232301,-500.0,9.611e-05,2]
[351779301,1738786232315,-500.0,9.611e-05,2]
[351779303,1738786232326,-500.0,9.611e-05,2]
[351779305,1738786232336,-500.0,9.611e-05,2]
[351779307,1738786232346,-500.0,9.611e-05,2]
[351779309,1738786232357,-500.0,9.611e-05,2]
[351779311,1738786232367,-500.0,9.611e-05,2]
[351779313,1738786232377,-500.0,9.611e-05,2]
[351779315,1738786232386,-500.0,9.611e-05,2]
[351779317,1738786232396,-500.0,9.611e-05,2]
[351779319,1738786232406,-500.0,9.611e-05,2]
[351779321,1738786232416,-500.0,9.611e-05,2]
[351779323,1738786232425,-500.0,9.611e-05,2]
[351779324,1738786232435,-500.0,9.611e-05,2]
[351779326,1738786232445,-500.0,9.611e-05,2]
[351779328,1738786232455,-500.0,9.611e-05,2]
[351779330,1738786232465,-500.0,9.611e-05,2]
[351779332,1738786232474,-500.0,9.611e-05,2]
[351779334,1738786232484,-500.0,9.611e-05,2]
[351779336,1738786232493,-500.0,9.611e-05,2]
[351779338,1738786232503,-500.0,9.611e-05,2]
[351779340,1738786232513,-500.0,9.611e-05,2]
[351779342,1738786232523,-500.0,9.611e-05,2]
[351779344,1738786232534,-500.0,9.611e-05,2]
[351779346,1738786232544,-500.0,9.611e-05,2]
[351779348,1738786232553,-500.0,9.611e-05,2]
[351779350,1738786232570,-500.0,9.611e-05,2]
[351779352,1738786232582,-500.0,9.611e-05,2]
[351779354,1738786232591,-500.0,9.611e-05,2]
[351779356,1738786232601,-500.0,9.611e-05,2]
[351779358,1738786232611,-500.0,9.611e-05,2]
[351779360,1738786232620,-500.0,9.611e-05,2]
[351779362,1738786232630,-500.0,9.611e-05,2]
[351779364,1738786232640,-500.0,9.611e-05,2]
[351779391,1738786232892,-500.0,9.611e-05,2]
[351779393,1738786232903,-500.0,9.611e-05,2]
[351779395,1738786232913,-500.0,9.611e-05,2]
[351779397,1738786232923,-500.0,9.611e-05,2]
[351779399,1738786232932,-500.0,9.611e-05,2]
[351779401,1738786232942,-500.0,9.611e-05,2]
[351779403,1738786232951,-500.0,9.611e-05,2]
[351779405,1738786232961,-500.0,9.611e-05,2]
[351779407,1738786232971,-500.0,9.611e-05,2]
[351779409,1738786232981,-423.93358073,9.612e-05,2]
[351779411,1738786232991,-196.42216552,9.612e-05,2]
[351779413,1738786233001,-500.0,9.612e-05,2]
[351779415,1738786233011,-320.30453579,9.612e-05,2]
[351779417,1738786233020,-500.0,9.612e-05,2]
[351779419,1738786233030,-500.0,9.612e-05,2]
[351779421,1738786233039,-703.86646457,9.612e-05,2]
[351779423,1738786233065,-68.27353543,9.612e-05,2]
[351779426,1738786233075,-500.0,9.612e-05,2]
[351779428,1738786233086,-500.0,9.612e-05,2]
[351779429,1738786233096,-300.66262136,9.612e-05,2]
[351779433,1738786233123,-199.33737864,9.612e-05,2]
[351779435,1738786233133,-460.78487989,9.612e-05,2]
[351779437,1738786233146,-500.0,9.612e-05,2]
[351779439,1738786233158,-500.0,9.612e-05,2]
[351779441,1738786233169,-500.0,9.612e-05,2]
[351779443,1738786233179,-1210.0,9.612e-05,2]
[351779445,1738786233191,-500.0,9.612e-05,2]
[351779447,1738786233202,-500.0,9.612e-05,2]
[351779449,1738786233214,-500.0,9.612e-05,2]
[351779451,1738786233226,-500.0,9.612e-05,2]
[351779453,1738786233236,-500.0,9.612e-05,2]
[351779455,1738786233247,-500.0,9.613e-05,2]
[351779457,1738786233256,-500.0,9.613e-05,2]
[351779459,1738786233266,-500.0,9.613e-05,2]
[351779461,1738786233276,-500.0,9.613e-05,2]
[351779463,1738786233286,-500.0,9.613e-05,2]
[351779465,1738786233295,-421.12734519,9.613e-05,2]
[351779467,1738786233305,-500.0,9.613e-05,2]
[351779469,1738786233320,-500.0,9.613e-05,2]
[351779471,1738786233330,-500.0,9.613e-05,2]
[351779473,1738786233340,-500.0,9.613e-05,2]
[351779475,1738786233351,-500.0,9.613e-05,2]
[351779477,1738786233362,-500.0,9.613e-05,2]
[351779479,1738786233372,-500.0,9.613e-05,2]
[351779481,1738786233383,-602.57,9.613e-05,2]
[351779483,1738786233393,-500.0,9.613e-05,2]
[351779485,1738786233405,-500.0,9.613e-05,2]
[351779487,1738786233415,-500.0,9.613e-05,2]
[351779489,1738786233425,-500.0,9.613e-05,2]
[351779491,1738786233435,-589.18,9.613e-05,2]
[351779493,1738786233446,-500.0,9.613e-05,2]
[351779495,1738786233455,-500.0,9.613e-05,2]
[351779496,1738786233466,-500.0,9.613e-05,2]
[351779498,1738786233476,-647.93,9.613e-05,2]
[351779500,1738786233487,-500.0,9.613e-05,2]
[351779502,1738786233497,-500.0,9.613e-05,2]
[351779504,1738786233507,-500.0,9.613e-05,2]
[351779506,1738786233518,-500.0,9.613e-05,2]
[351779508,1738786233529,-500.0,9.613e-05,2]
[351779510,1738786233539,-500.0,9.613e-05,2]
[351779512,1738786233550,-500.0,9.613e-05,2]
[351779514,1738786233566,-500.0,9.613e-05,2]
[351779516,1738786233578,-500.0,9.613e-05,2]
[351779518,1738786233589,-500.0,9.613e-05,2]
[351779520,1738786233599,-500.0,9.613e-05,2]
[351779522,1738786233610,-500.0,9.613e-05,2]
[351779524,1738786233621,-500.0,9.613e-05,2]
[351779526,1738786233633,-500.0,9.613e-05,2]
[351779528,1738786233644,-500.0,9.613e-05,2]
[351779530,1738786233655,-500.0,9.613e-05,2]
[351779532,1738786233666,-608.5,9.613e-05,2]
[351779534,1738786233676,-500.0,9.613e-05,2]
[351779536,1738786233687,-500.0,9.613e-05,2]
[351779538,1738786233697,-500.0,9.613e-05,2]
[351779540,1738786233707,-522.57,9.613e-05,2]
[351779542,1738786233718,-575.65,9.613e-05,2]
[351779544,1738786233728,-500.0,9.613e-05,2]
[351779546,1738786233738,-254.04013288,9.613e-05,2]
[351779548,1738786233748,-500.0,9.613e-05,2]
[351779550,1738786233759,-500.0,9.613e-05,2]
[351779552,1738786233768,-500.0,9.613e-05,2]
[351779553,1738786233779,-500.0,9.613e-05,2]
[351779554,1738786233788,-500.0,9.613e-05,2]
[351779555,1738786233798,-500.0,9.613e-05,2]
[351779556,1738786233810,-500.0,9.613e-05,2]
[351779557,1738786233820,-500.0,9.613e-05,2]
[351779558,1738786233830,-500.0,9.613e-05,2]
[351779559,1738786233840,-500.0,9.613e-05,2]
[351779560,1738786233851,-574.35,9.613e-05,2]
[351779561,1738786233861,-500.0,9.613e-05,2]
[351779562,1738786233871,-500.0,9.613e-05,2]
[351779563,1738786233882,-500.0,9.613e-05,2]
[351779564,1738786233892,-500.0,9.613e-05,2]
[351779565,1738786233902,-501.29874159,9.613e-05,2]
[351779566,1738786233912,-500.0,9.613e-05,2]
[351779567,1738786233922,-500.0,9.613e-05,2]
[351779568,1738786233933,-500.0,9.613e-05,2]
[351779569,1738786233943,-500.0,9.613e-05,2]
[351779570,1738786233953,-500.0,9.613e-05,2]
[351779571,1738786233964,-500.0,9.613e-05,2]
[351779572,1738786233974,-500.0,9.613e-05,2]
[351779573,1738786233984,-500.0,9.613e-05,2]
[351779574,1738786233994,-500.0,9.613e-05,2]
[351779575,1738786234006,-500.0,9.613e-05,2]
[351779576,1738786234016,-500.0,9.613e-05,2]
[351779577,1738786234028,-500.0,9.613e-05,2]
[351779578,1738786234038,-500.0,9.613e-05,2]
[351779579,1738786234049,-500.0,9.613e-05,2]
[351779580,1738786234063,-500.0,9.613e-05,2]
[351779581,1738786234074,-500.0,9.613e-05,2]
[351779582,1738786234084,-500.0,9.613e-05,2]
[351779583,1738786234094,-500.0,9.613e-05,2]
[351779584,1738786234105,-500.0,9.613e-05,2]
[351779585,1738786234115,-500.0,9.613e-05,2]
[351779586,1738786234126,-500.0,9.613e-05,2]
[351779587,1738786234137,-500.0,9.613e-05,2]
[351779588,1738786234154,-500.0,9.613e-05,2]
[351779589,1738786234164,-500.0,9.613e-05,2]
[351779590,1738786234175,-500.0,9.613e-05,2]
[351779591,1738786234187,-500.0,9.613e-05,2]
[351779592,1738786234198,-500.0,9.613e-05,2]
[351779593,1738786234208,-500.0,9.613e-05,2]
[351779594,1738786234219,-500.0,9.613e-05,2]
[351779595,1738786234229,-500.0,9.613e-05,2]
[351779596,1738786234240,-500.0,9.613e-05,2]
[351779597,1738786234249,-500.0,9.613e-05,2]
[351779598,1738786234260,-500.0,9.613e-05,2]
[351779599,1738786234271,-500.0,9.613e-05,2]
[351779600,1738786234282,-500.0,9.613e-05,2]
[351779601,1738786234292,-500.0,9.613e-05,2]
[351779602,1738786234303,-500.0,9.613e-05,2]
[351779603,1738786234316,-175.02092512,9.613e-05,2]
[351779604,1738786234327,-500.0,9.613e-05,2]
[351779605,1738786234337,-500.0,9.613e-05,2]
[351779606,1738786234348,-500.0,9.613e-05,2]
[351779607,1738786234358,-500.0,9.613e-05,2]
[351779608,1738786234368,-500.0,9.613e-05,2]
[351779609,1738786234378,-500.0,9.613e-05,2]
[351779610,1738786234388,-500.0,9.613e-05,2]
[351779611,1738786234398,-500.0,9.613e-05,2]
[351779612,1738786234408,-500.0,9.613e-05,2]
[351779613,1738786234418,-500.0,9.613e-05,2]
[351779614,1738786234429,-500.0,9.613e-05,2]
[351779615,1738786234439,-500.0,9.613e-05,2]
[351779616,1738786234449,-500.0,9.613e-05,2]
[351779617,1738786234462,-500.0,9.613e-05,2]
[351779618,1738786234472,-500.0,9.613e-05,2]
[351779619,1738786234482,-500.0,9.613e-05,2]
[351779620,1738786234492,-500.0,9.613e-05,2]
[351779621,1738786234502,-500.0,9.613e-05,2]
[351779622,1738786234512,-500.0,9.613e-05,2]
[351779623,1738786234521,-500.0,9.613e-05,2]
[351779624,1738786234531,-500.0,9.613e-05,2]
[351779625,1738786234541,-500.0,9.613e-05,2]
[351779626,1738786234552,-500.0,9.613e-05,2]
[351779627,1738786234564,-500.0,9.613e-05,2]
[351779628,1738786234576,-500.0,9.613e-05,2]
[351779629,1738786234587,-500.0,9.613e-05,2]
[351779630,1738786234597,-500.0,9.613e-05,2]
[351779631,1738786234607,-577.65266027,9.613e-05,2]
[351779632,1738786234618,-500.0,9.613e-05,2]
[351779633,1738786234629,-500.0,9.613e-05,2]
[351779634,1738786234640,-500.0,9.613e-05,2]
[351779635,1738786234650,-500.0,9.613e-05,2]
[351779636,1738786234660,-500.0,9.613e-05,2]
[351779637,1738786234670,-500.0,9.613e-05,2]
[351779638,1738786234680,-500.0,9.613e-05,2]
[351779639,1738786234690,-500.0,9.613e-05,2]
[351779640,1738786234701,-500.0,9.613e-05,2]
[351779641,1738786234711,-500.0,9.613e-05,2]
[351779642,1738786234721,-500.0,9.613e-05,2]
[351779643,1738786234731,-500.0,9.613e-05,2]
[351779644,1738786234741,-248.05089937,9.613e-05,2]
[351779645,1738786234750,-500.0,9.613e-05,2]
[351779646,1738786234760,-500.0,9.613e-05,2]
[351779647,1738786234770,-500.0,9.613e-05,2]
[351779648,1738786234780,-500.0,9.613e-05,2]
[351779649,1738786234789,-500.0,9.613e-05,2]
[351779650,1738786234799,-500.0,9.613e-05,2]
[351779651,1738786234812,-500.0,9.613e-05,2]
[351779652,1738786234822,-500.0,9.613e-05,2]
[351779653,1738786234832,-583.12912503,9.613e-05,2]
[351779654,1738786234842,-500.0,9.613e-05,2]
[351779655,1738786234851,-500.0,9.613e-05,2]
[351779656,1738786234861,-500.0,9.613e-05,2]
[351779657,1738786234872,-500.0,9.613e-05,2]
[351779658,1738786234882,-472.24425743,9.613e-05,2]
[351779659,1738786234892,-500.0,9.613e-05,2]
[351779660,1738786234902,-500.0,9.613e-05,2]
[351779661,1738786234912,-500.0,9.613e-05,2]
[351779662,1738786234922,-500.0,9.613e-05,2]
[351779663,1738786234933,-440.42021319,9.613e-05,2]
[351779664,1738786234943,-5861.32,9.67e-05,2]
[351779665,1738786234953,-201.37402659,9.723e-05,2]
[351779666,1738786234962,-156.78656459,9.723e-05,2]
[351779667,1738786234972,-5376.14161152,9.733e-05,2]
[351779668,1738786234982,-474.85,9.741e-05,2]
[351779669,1738786234992,-500.0,9.746e-05,2]
[351779670,1738786235001,-500.0,9.746e-05,2]
[351779671,1738786235011,-500.0,9.746e-05,2]
[351779672,1738786235020,-324.267456,9.746e-05,2]
[351779673,1738786235030,-500.0,9.746e-05,2]